fUSD/lending_fUSD_20240107
["ID","MTS","AMOUNT","RATE_DAILY","PERIOD"]
[310650917,1704636632659,-500.0,0.00022499,2]
[310650918,1704636632669,-500.0,0.00022499,2]
[310650919,1704636632679,-809.52015023,0.00022499,2]
[310650920,1704636632688,-500.0,0.00022499,2]
[310650921,1704636632697,-500.0,0.00022499,2]
[310650922,1704636632706,-500.0,0.00022499,2]
[310650923,1704636632716,-500.0,0.00022499,2]
[310650924,1704636632724,-500.0,0.00022499,2]
[310650925,1704636632734,-500.0,0.00022499,2]
[310650926,1704636632743,-500.0,0.00022499,2]
[310650927,1704636632752,-500.0,0.00022499,2]
[310650928,1704636632761,-500.0,0.00022499,2]
[310650929,1704636632771,-500.0,0.00022499,2]
[310650930,1704636632781,-500.0,0.00022499,2]
[310650931,1704636632793,-500.0,0.00022499,2]
[310650932,1704636632802,-500.0,0.00022499,2]
[310650933,1704636632812,-504.81460743,0.00022499,2]
[310650934,1704636632821,-500.0,0.00022499,2]
[310650935,1704636632831,-500.0,0.00022499,2]
[310650936,1704636632841,-141.18404367,0.00022499,2]
[310650937,1704636632857,-358.81595633,0.00022499,2]
[310650938,1704636632866,-495.62404367,0.00022499,2]
[310650939,1704636632884,-4.37595633,0.00022499,2]
[310650940,1704636632894,-500.0,0.00022499,2]
[310650941,1704636632904,-500.0,0.00022499,2]
[310650942,1704636632914,-502.20398554,0.00022499,2]
[310650943,1704636632924,-500.0,0.00022499,2]
[310650944,1704636632934,-500.0,0.00022499,2]
[310650945,1704636632944,-539.59527838,0.00022499,2]
[310650946,1704636632953,-520.86311943,0.00022499,2]
[310650947,1704636632963,-503.99601199,0.00022499,2]
[310650948,1704636632973,-500.0,0.00022499,2]
[310650949,1704636632983,-500.0,0.00022499,2]
[310650950,1704636632993,-500.0,0.00022499,2]
[310650951,1704636633002,-500.0,0.00022499,2]
[310650952,1704636633012,-500.0,0.00022499,2]
[310650953,1704636633022,-500.0,0.00022499,2]
[310650954,1704636633032,-500.0,0.00022499,2]
[310650955,1704636633042,-500.0,0.00022499,2]
[310650956,1704636633052,-500.0,0.00022499,2]
[310650957,1704636633061,-500.0,0.00022499,2]
[310650958,1704636633071,-500.0,0.00022499,2]
[310650959,1704636633081,-500.0,0.00022499,2]
[310650960,1704636633091,-500.0,0.00022499,2]
[310650961,1704636633100,-500.0,0.00022499,2]
[310650962,1704636633109,-500.0,0.00022499,2]
[310650963,1704636633118,-500.0,0.00022499,2]
[310650964,1704636633127,-500.0,0.00022499,2]
[310650965,1704636633136,-500.0,0.00022499,2]
[310650966,1704636633146,-500.0,0.00022499,2]
[310650967,1704636633155,-595.44638938,0.00022499,2]
[310650968,1704636633164,-525.34497501,0.00022499,2]
[310650969,1704636633173,-500.0,0.00022499,2]
[310650970,1704636633182,-500.0,0.00022499,2]
[310650971,1704636633191,-500.0,0.00022499,2]
[310650972,1704636633200,-500.0,0.00022499,2]
[310650973,1704636633209,-500.0,0.00022499,2]
[310650974,1704636633218,-500.0,0.00022499,2]
[310650975,1704636633227,-500.0,0.00022499,2]
[310650976,1704636633237,-500.0,0.00022499,2]
[310650977,1704636633246,-500.0,0.00022499,2]
[310650978,1704636633255,-500.0,0.00022499,2]
[310650979,1704636633265,-534.90152019,0.00022499,2]
[310650980,1704636633274,-515.3850024,0.00022499,2]
[310650981,1704636633283,-507.34465476,0.00022499,2]
[310650982,1704636633292,-500.0,0.00022499,2]
[310650983,1704636633303,-500.0,0.00022499,2]
[310650984,1704636633312,-500.0,0.00022499,2]
[310650985,1704636633321,-500.0,0.00022499,2]
[310650986,1704636633330,-500.0,0.00022499,2]
[310650987,1704636633340,-500.0,0.00022499,2]
[310650988,1704636633350,-504.58121359,0.00022499,2]
[310650989,1704636633360,-603.23542235,0.00022499,2]
[310650990,1704636633369,-500.0,0.00022499,2]
[310650991,1704636633378,-527.78900812,0.00022499,2]
[310650992,1704636633387,-500.0,0.00022499,2]
[310650993,1704636633397,-500.0,0.00022499,2]
[310650994,1704636633406,-500.0,0.00022499,2]
[310650995,1704636633416,-500.0,0.00022499,2]
[310650996,1704636633425,-500.0,0.00022499,2]
[310650997,1704636633435,-500.0,0.00022499,2]
[310650998,1704636633444,-500.0,0.00022499,2]
[310650999,1704636633454,-500.0,0.00022499,2]
[310651000,1704636633463,-500.0,0.00022499,2]
[310651001,1704636633472,-500.0,0.00022499,2]
[310651002,1704636633482,-500.0,0.00022499,2]
[310651003,1704636633491,-500.0,0.00022499,2]
[310651004,1704636633501,-633.82,0.00022499,2]
[310651005,1704636633512,-500.0,0.00022499,2]
[310651006,1704636633521,-500.0,0.00022499,2]
[310651007,1704636633531,-500.0,0.00022499,2]
[310651008,1704636633540,-500.0,0.00022499,2]
[310651009,1704636633550,-507.24958046,0.00022499,2]
[310651010,1704636633559,-500.0,0.00022499,2]
[310651011,1704636633569,-500.0,0.00022499,2]
[310651012,1704636633578,-500.0,0.00022499,2]
[310651013,1704636633587,-500.0,0.00022499,2]
[310651014,1704636633597,-500.0,0.00022499,2]
[310651015,1704636633606,-500.0,0.00022499,2]
[310651016,1704636633615,-500.0,0.00022499,2]
[310651017,1704636633626,-718.08,0.00022499,2]
[310651018,1704636633635,-500.0,0.00022499,2]
[310651019,1704636633644,-500.0,0.00022499,2]
[310651020,1704636633654,-500.0,0.00022499,2]
[310651021,1704636633663,-500.0,0.00022499,2]
[310651022,1704636633672,-500.0,0.00022499,2]
[310651023,1704636633681,-500.0,0.00022499,2]
[310651024,1704636633691,-611.45,0.00022499,2]
[310651025,1704636633700,-500.0,0.00022499,2]
[310651026,1704636633713,-500.0,0.00022499,2]
[310651027,1704636633723,-500.0,0.00022499,2]
[310651028,1704636633733,-500.0,0.00022499,2]
[310651029,1704636633742,-500.0,0.00022499,2]
[310651030,1704636633752,-500.0,0.00022499,2]
[310651031,1704636633762,-500.0,0.00022499,2]
[310651032,1704636633771,-500.0,0.00022499,2]
[310651033,1704636633783,-500.0,0.00022499,2]
[310651034,1704636633792,-500.0,0.00022499,2]
[310651035,1704636633802,-619.42,0.00022499,2]
[310651036,1704636633812,-569.55,0.00022499,2]
[310651037,1704636633821,-500.0,0.00022499,2]
[310651038,1704636633830,-500.0,0.00022499,2]
[310651039,1704636633840,-500.0,0.00022499,2]
[310651040,1704636633849,-500.0,0.00022499,2]
[310651041,1704636633858,-500.0,0.00022499,2]
[310651042,1704636633867,-500.0,0.00022499,2]
[310651043,1704636633877,-500.0,0.00022499,2]
[310651044,1704636633886,-500.0,0.00022499,2]
[310651045,1704636633896,-500.0,0.00022499,2]
[310651046,1704636633905,-500.0,0.00022499,2]
[310651047,1704636633914,-500.0,0.00022499,2]
[310651048,1704636633923,-500.0,0.00022499,2]
[310651049,1704636633933,-500.0,0.00022499,2]
[310651050,1704636633943,-500.0,0.00022499,2]
[310651051,1704636633951,-500.0,0.00022499,2]
[310651052,1704636633961,-576.44,0.00022499,2]
[310651053,1704636633970,-500.0,0.00022499,2]
[310651054,1704636633979,-500.0,0.00022499,2]
[310651055,1704636633989,-500.0,0.00022499,2]
[310651056,1704636633999,-500.0,0.00022499,2]
[310651057,1704636634009,-500.3,0.00022499,2]
[310651058,1704636634021,-507.09,0.00022499,2]
[310651059,1704636634030,-516.61,0.00022499,2]
[310651060,1704636634040,-500.0,0.00022499,2]
[310651061,1704636634050,-500.0,0.00022499,2]
[310651062,1704636634059,-576.28,0.00022499,2]
[310651063,1704636634069,-500.0,0.00022499,2]
[310651064,1704636634078,-500.0,0.00022499,2]
[310651065,1704636634087,-500.0,0.00022499,2]
[310651066,1704636634096,-754.89,0.00022499,2]
[310651067,1704636634106,-500.0,0.00022499,2]
[310651068,1704636634115,-500.0,0.00022499,2]
[310651069,1704636634125,-500.0,0.00022499,2]
[310651070,1704636634135,-500.0,0.00022499,2]
[310651071,1704636634144,-500.0,0.00022499,2]
[310651072,1704636634154,-500.0,0.00022499,2]
[310651073,1704636634162,-500.0,0.00022499,2]
[310651074,1704636634172,-500.0,0.00022499,2]
[310651075,1704636634181,-500.0,0.00022499,2]
[310651076,1704636634190,-500.0,0.00022499,2]
[310651077,1704636634199,-500.0,0.00022499,2]
[310651078,1704636634209,-640.56,0.00022499,2]
[310651079,1704636634218,-587.76,0.00022499,2]
[310651080,1704636634227,-500.0,0.00022499,2]
[310651081,1704636634237,-500.0,0.00022499,2]
[310651082,1704636634246,-500.0,0.00022499,2]
[310651083,1704636634255,-500.0,0.00022499,2]
[310651084,1704636634267,-531.47,0.00022499,2]
[310651085,1704636634276,-500.0,0.00022499,2]
[310651086,1704636634287,-500.0,0.00022499,2]
[310651087,1704636634296,-500.0,0.00022499,2]
[310651088,1704636634305,-500.0,0.00022499,2]
[310651089,1704636634315,-500.0,0.00022499,2]
[310651090,1704636634324,-500.0,0.00022499,2]
[310651091,1704636634333,-893.6,0.00022499,2]
[310651092,1704636634343,-500.0,0.00022499,2]
[310651093,1704636634353,-500.0,0.00022499,2]
[310651094,1704636634362,-500.0,0.00022499,2]
[310651095,1704636634371,-500.0,0.00022499,2]
[310651096,1704636634381,-520.43,0.00022499,2]
[310651097,1704636634391,-500.0,0.00022499,2]
[310651098,1704636634401,-526.54,0.00022499,2]
[310651099,1704636634410,-500.0,0.00022499,2]
[310651100,1704636634419,-500.0,0.00022499,2]
[310651101,1704636634429,-500.0,0.00022499,2]
[310651102,1704636634438,-129072.70896353,0.000225,2]
[310651103,1704636634448,-152.18,0.00022514,2]
[310651104,1704636634457,-153.97,0.00022551,2]
[310651105,1704636634467,-1500.0,0.00022677,2]
[310651106,1704636634487,-1500.0,0.00022691,2]
[310651107,1704636634497,-1500.0,0.00022693,2]
[310651108,1704636634507,-1500.0,0.00022696,2]
[310651109,1704636634517,-55555.0,0.00022698,2]
[310651110,1704636634527,-1037.0,0.000227,2]
[310651111,1704636634537,-1500.0,0.00022713,2]
[310651112,1704636634547,-1500.0,0.00022727,2]
[310651113,1704636634557,-150.0,0.00022747,2]
[310651114,1704636634566,-1500.0,0.00022751,2]
[310651115,1704636634576,-150.0,0.00022752,2]
[310651116,1704636634586,-300.0,0.00022753,2]
[310651117,1704636634595,-150.0,0.00022757,2]
[310651118,1704636634605,-150.0,0.0002276,2]
[310651119,1704636634615,-1500.0,0.0002276,2]
[310651120,1704636634625,-300.0,0.00022765,2]
[310651121,1704636634634,-221.95741752,0.00022768,4]
[310651122,1704636634644,-152.18,0.00022773,2]
[310651123,1704636634654,-209.76198084,0.00022797,2]
[310651124,1704636634664,-232.28,0.00022797,2]
[310651125,1704636634673,-500.0,0.00022798,2]
[310651126,1704636634683,-500.0,0.00022798,2]
[310651127,1704636634692,-500.0,0.00022798,2]
[310651128,1704636634702,-500.0,0.00022798,2]
[310651129,1704636634711,-500.0,0.00022798,2]
[310651130,1704636634721,-518.00680553,0.00022798,2]
[310651131,1704636634731,-500.0,0.00022798,2]
[310651132,1704636634741,-500.0,0.00022798,2]
[310651133,1704636634750,-512.5293595,0.00022798,2]
[310651134,1704636634759,-500.0,0.00022798,2]
[310651135,1704636634771,-500.0,0.00022798,2]
[310651136,1704636634786,-500.0,0.00022798,2]
[310651137,1704636634796,-500.0,0.00022798,2]
[310651138,1704636634805,-500.0,0.00022798,2]
[310651139,1704636634815,-500.0,0.00022798,2]
[310651140,1704636634824,-500.0,0.00022798,2]
[310651141,1704636634834,-500.0,0.00022798,2]
[310651142,1704636634844,-500.0,0.00022798,2]
[310651143,1704636634854,-500.0,0.00022798,2]
[310651144,1704636634863,-520.83229057,0.00022798,2]
[310651145,1704636634872,-500.0,0.00022798,2]
[310651146,1704636634882,-516.75307009,0.00022798,2]
[310651147,1704636634892,-510.31560888,0.00022798,2]
[310651148,1704636634901,-500.0,0.00022798,2]
[310651149,1704636634910,-503.71866817,0.00022798,2]
[310651150,1704636634919,-549.04773225,0.00022798,2]
[310651151,1704636634929,-500.0,0.00022798,2]
[310651152,1704636634938,-500.0,0.00022798,2]
[310651153,1704636634948,-500.0,0.00022798,2]
[310651154,1704636634959,-500.0,0.00022798,2]
[310651155,1704636634968,-576.01,0.00022798,2]
[310651156,1704636634977,-421.70103281,0.00022798,2]
[310651157,1704636634990,-500.0,0.00022798,2]
[310651158,1704636635000,-500.0,0.00022798,2]
[310651159,1704636635009,-500.0,0.00022798,2]
[310651160,1704636635020,-500.0,0.00022798,2]
[310651161,1704636635030,-500.0,0.00022798,2]
[310651162,1704636635039,-500.0,0.00022798,2]
[310651163,1704636635049,-500.0,0.00022798,2]
[310651164,1704636635058,-500.0,0.00022798,2]
[310651165,1704636635068,-500.0,0.00022798,2]
[310651166,1704636635077,-510.56880567,0.00022798,2]
[310651167,1704636635087,-511.34709817,0.00022798,2]
[310651168,1704636635096,-500.0,0.00022798,2]
[310651169,1704636635106,-362.02248192,0.00022798,2]
[310651170,1704636635115,-507.44115802,0.00022798,2]
[310651171,1704636635125,-500.0,0.00022798,2]
[310651172,1704636635135,-510.38900138,0.00022798,2]
[310651173,1704636635144,-506.54226166,0.00022798,2]
[310651174,1704636635154,-500.0,0.00022798,2]
[310651175,1704636635163,-508.9028148,0.00022798,2]
[310651176,1704636635173,-500.0,0.00022798,2]
[310651177,1704636635182,-500.0,0.00022798,2]
[310651178,1704636635192,-510.47014355,0.00022798,2]
[310651179,1704636635202,-506.99042496,0.00022798,2]
[310651180,1704636635211,-513.41839546,0.00022798,2]
[310651181,1704636635221,-500.0,0.00022798,2]
[310651182,1704636635231,-501.21317476,0.00022798,2]
[310651183,1704636635243,-513.14478021,0.00022798,2]
[310651184,1704636635254,-508.45257376,0.00022798,2]
[310651185,1704636635268,-629.95329922,0.00022798,2]
[310651186,1704636635279,-503.50827249,0.00022798,2]
[310651187,1704636635290,-513.12105934,0.00022798,2]
[310651188,1704636635302,-500.0,0.00022798,2]
[310651189,1704636635316,-504.53476675,0.00022798,2]
[310651190,1704636635329,-510.15895742,0.00022798,2]
[310651191,1704636635340,-500.0,0.00022798,2]
[310651192,1704636635353,-505.20118042,0.00022798,2]
[310651193,1704636635366,-500.0,0.00022798,2]
[310651194,1704636635377,-505.1883213,0.00022798,2]
[310651195,1704636635389,-500.0,0.00022798,2]
[310651196,1704636635400,-507.41106284,0.00022798,2]
[310651197,1704636635412,-500.0,0.00022798,2]
[310651198,1704636635423,-501.95171935,0.00022798,2]
[310651199,1704636635435,-517.18469592,0.00022798,2]
[310651200,1704636635446,-506.37375259,0.00022798,2]
[310651201,1704636635459,-500.0,0.00022798,2]
[310651202,1704636635471,-500.0,0.00022798,2]
[310651203,1704636635482,-370.81604865,0.00022798,2]
[310651204,1704636635493,-500.0,0.00022798,2]
[310651205,1704636635506,-500.0,0.00022798,2]
[310651206,1704636635525,-506.85253649,0.00022798,2]
[310651207,1704636635539,-500.0,0.00022798,2]
[310651208,1704636635551,-490.90345426,0.00022798,2]
[310651209,1704636635564,-515.39375056,0.00022798,2]
[310651210,1704636635576,-513.5916066,0.00022798,2]
[310651211,1704636635588,-526.85516485,0.00022798,2]
[310651212,1704636635600,-502.31820296,0.00022798,2]
[310651213,1704636635612,-505.8529619,0.00022798,2]
[310651214,1704636635624,-500.0,0.00022798,2]
[310651215,1704636635637,-598.03,0.00022798,2]
[310651216,1704636635649,-505.09955649,0.00022798,2]
[310651217,1704636635662,-506.27166456,0.00022798,2]
[310651218,1704636635674,-500.0,0.00022798,2]
[310651219,1704636635687,-500.0,0.00022798,2]
[310651220,1704636635700,-507.38915717,0.00022798,2]
[310651221,1704636635712,-525.03,0.00022798,2]
[310651222,1704636635724,-500.0,0.00022798,2]
[310651223,1704636635736,-500.0,0.00022798,2]
[310651224,1704636635748,-500.0,0.00022798,2]
[310651225,1704636635759,-500.0,0.00022798,2]
[310651226,1704636635785,-500.0,0.00022798,2]
[310651227,1704636635797,-505.13899754,0.00022798,2]
[310651228,1704636635815,-500.0,0.00022798,2]
[310651229,1704636635828,-505.51976837,0.00022798,2]
[310651230,1704636635840,-500.0,0.00022798,2]
[310651231,1704636635852,-203.17901593,0.00022798,2]
[310651232,1704636635863,-500.0,0.00022798,2]
[310651233,1704636635877,-500.0,0.00022798,2]
[310651234,1704636635888,-509.27929158,0.00022798,2]
[310651235,1704636635899,-506.46405732,0.00022798,2]
[310651236,1704636635910,-522.92705725,0.00022798,2]
[310651237,1704636635923,-507.98759739,0.00022798,2]
[310651238,1704636635935,-500.0,0.00022798,2]
[310651239,1704636635947,-500.0,0.00022798,2]
[310651240,1704636635958,-500.0,0.00022798,2]
[310651241,1704636635969,-544.98832259,0.00022798,2]
[310651242,1704636635981,-503.6221042,0.00022798,2]
[310651243,1704636635992,-500.0,0.00022798,2]
[310651244,1704636636003,-504.90666215,0.00022798,2]
[310651245,1704636636022,-500.0,0.00022798,2]
[310651246,1704636636034,-505.82370494,0.00022798,2]
[310651247,1704636636045,-500.0,0.00022798,2]
[310651248,1704636636058,-500.0,0.00022798,2]
[310651249,1704636636070,-500.0,0.00022798,2]
[310651250,1704636636081,-567.84639109,0.00022798,2]
[310651251,1704636636091,-514.20511755,0.00022798,2]
[310651252,1704636636102,-500.0,0.00022798,2]
[310651253,1704636636112,-500.0,0.00022798,2]
[310651254,1704636636123,-510.6665211,0.00022798,2]
[310651255,1704636636134,-500.0,0.00022798,2]
[310651256,1704636636144,-503.99077526,0.00022798,2]
[310651257,1704636636154,-525.50429523,0.00022798,2]
[310651258,1704636636164,-500.0,0.00022798,2]
[310651259,1704636636175,-500.0,0.00022798,2]
[310651260,1704636636185,-500.0,0.00022798,2]
[310651261,1704636636195,-521.56998892,0.00022798,2]
[310651262,1704636636206,-520.28955589,0.00022798,2]
[310651263,1704636636216,-523.18435452,0.00022798,2]
[310651264,1704636636225,-529.52341017,0.00022798,2]
[310651265,1704636636235,-500.0,0.00022798,2]
[310651266,1704636636245,-516.41065858,0.00022798,2]
[310651267,1704636636255,-500.0,0.00022798,2]
[310651268,1704636636271,-509.01905337,0.00022798,2]
[310651269,1704636636282,-534.63514062,0.00022798,2]
[310651270,1704636636292,-500.0,0.00022798,2]
[310651271,1704636636302,-509.28386195,0.00022798,2]
[310651272,1704636636311,-558.36463919,0.00022798,2]
[310651273,1704636636321,-500.0,0.00022798,2]
[310651274,1704636636331,-511.91509976,0.00022798,2]
[310651275,1704636636341,-503.75040181,0.00022798,2]
[310651276,1704636636351,-503.24203354,0.00022798,2]
[310651277,1704636636360,-514.06329467,0.00022798,2]
[310651278,1704636636370,-500.0,0.00022798,2]
[310651279,1704636636381,-511.74094227,0.00022798,2]
[310651280,1704636636391,-500.0,0.00022798,2]
[310651281,1704636636401,-517.15135147,0.00022798,2]
[310651282,1704636636411,-514.5519179,0.00022798,2]
[310651283,1704636636421,-500.0,0.00022798,2]
[310651284,1704636636431,-508.88539536,0.00022798,2]
[310651285,1704636636442,-519.69025216,0.00022798,2]
[310651286,1704636636453,-500.0,0.00022798,2]
[310651287,1704636636464,-511.54662094,0.00022798,2]
[310651288,1704636636474,-501.29934149,0.00022798,2]
[310651289,1704636636484,-249.64969906,0.00022798,2]
[310651290,1704636636494,-523.51365937,0.00022798,2]
[310651291,1704636636504,-500.0,0.00022798,2]
[310651292,1704636636516,-1000.0,0.00022798,2]
[310651293,1704636636526,-500.0,0.00022798,2]
[310651294,1704636636537,-582.39,0.00022798,2]
[310651295,1704636636547,-513.25800369,0.00022798,2]
[310651296,1704636636559,-510.11124863,0.00022798,2]
[310651297,1704636636569,-525.415383,0.00022798,2]
[310651298,1704636636579,-220.09801278,0.00022798,2]
[310651299,1704636636590,-503.31680493,0.00022798,2]
[310651300,1704636636600,-500.0,0.00022798,2]
[310651301,1704636636610,-500.0,0.00022798,2]
[310651302,1704636636621,-500.0,0.00022798,2]
[310651303,1704636636632,-504.60042011,0.00022798,2]
[310651304,1704636636643,-500.0,0.00022798,2]
[310651305,1704636636653,-500.0,0.00022798,2]
[310651306,1704636636663,-500.0,0.00022798,2]
[310651307,1704636636674,-500.0,0.00022798,2]
[310651308,1704636636685,-500.0,0.00022798,2]
[310651309,1704636636698,-500.0,0.00022798,2]
[310651310,1704636636710,-500.0,0.00022798,2]
[310651311,1704636636720,-500.0,0.00022798,2]
[310651312,1704636636732,-500.0,0.00022798,2]
[310651313,1704636636742,-500.0,0.00022798,2]
[310651314,1704636636753,-500.0,0.00022798,2]
[310651315,1704636636765,-505.5181728,0.00022798,2]
[310651316,1704636636776,-500.0,0.00022798,2]
[310651317,1704636636786,-500.0,0.00022798,2]
[310651318,1704636636796,-500.0,0.00022798,2]
[310651319,1704636636807,-500.0,0.00022798,2]
[310651320,1704636636818,-500.0,0.00022798,2]
[310651321,1704636636827,-500.0,0.00022798,2]
[310651322,1704636636838,-534.4993037,0.00022798,2]
[310651323,1704636636848,-500.0,0.00022798,2]
[310651324,1704636636858,-500.0,0.00022798,2]
[310651325,1704636636868,-500.0,0.00022798,2]
[310651326,1704636636878,-500.0,0.00022798,2]
[310651327,1704636636888,-500.0,0.00022798,2]
[310651328,1704636636899,-500.0,0.00022798,2]
[310651329,1704636636910,-500.0,0.00022798,2]
[310651330,1704636636919,-500.0,0.00022798,2]
[310651331,1704636636930,-500.0,0.00022798,2]
[310651332,1704636636940,-500.0,0.00022798,2]
[310651333,1704636637175,-500.0,0.00022798,2]
[310651335,1704636637185,-500.0,0.00022798,2]
[310651337,1704636637194,-500.0,0.00022798,2]
[310651339,1704636637203,-500.0,0.00022798,2]
[310651341,1704636637212,-500.0,0.00022798,2]
[310651343,1704636637221,-500.0,0.00022798,2]
[310651345,1704636637231,-500.0,0.00022798,2]
[310651347,1704636637241,-500.0,0.00022798,2]
[310651349,1704636637251,-500.0,0.00022798,2]
[310651351,1704636637260,-500.0,0.00022798,2]
[310651353,1704636637273,-500.0,0.00022798,2]
[310651355,1704636637282,-500.0,0.00022798,2]
[310651357,1704636637291,-500.0,0.00022798,2]
[310651359,1704636637300,-500.0,0.00022798,2]
[310651361,1704636637309,-500.0,0.00022798,2]
[310651363,1704636637319,-500.0,0.00022798,2]
[310651365,1704636637328,-500.0,0.00022798,2]
[310651367,1704636637338,-500.0,0.00022798,2]
[310651369,1704636637347,-500.0,0.00022798,2]
[310651372,1704636637357,-500.0,0.00022798,2]
[310651375,1704636637367,-500.0,0.00022798,2]
[310651379,1704636637376,-500.0,0.00022798,2]
[310651383,1704636637386,-500.0,0.00022798,2]
[310651386,1704636637395,-500.0,0.00022798,2]
[310651389,1704636637405,-500.0,0.00022798,2]
[310651391,1704636637414,-500.0,0.00022798,2]
[310651396,1704636637424,-500.0,0.00022798,2]
[310651402,1704636637434,-500.0,0.00022798,2]
[310651404,1704636637443,-500.0,0.00022798,2]
[310651406,1704636637453,-500.0,0.00022798,2]
[310651409,1704636637463,-500.0,0.00022798,2]
[310651411,1704636637473,-500.0,0.00022798,2]
[310651413,1704636637482,-500.0,0.00022798,2]
[310651415,1704636637492,-500.0,0.00022798,2]
[310651417,1704636637502,-543.52776691,0.00022798,2]
[310651419,1704636637511,-500.0,0.00022798,2]
[310651420,1704636637523,-500.0,0.00022798,2]
[310651421,1704636637533,-500.0,0.00022798,2]
[310651422,1704636637542,-500.0,0.00022798,2]
[310651423,1704636637552,-500.0,0.00022798,2]
[310651424,1704636637561,-517.11438144,0.00022798,2]
[310651425,1704636637571,-500.0,0.00022798,2]
[310651426,1704636637581,-500.0,0.00022798,2]
[310651427,1704636637593,-500.0,0.00022798,2]
[310651428,1704636637602,-500.0,0.00022798,2]
[310651429,1704636637611,-500.0,0.00022798,2]
[310651430,1704636637621,-500.0,0.00022798,2]
[310651431,1704636637630,-500.0,0.00022798,2]
[310651432,1704636637640,-500.0,0.00022798,2]
[310651433,1704636637649,-500.0,0.00022798,2]
[310651434,1704636637659,-500.0,0.00022798,2]
[310651435,1704636637669,-500.0,0.00022798,2]
[310651436,1704636637679,-500.0,0.00022798,2]
[310651437,1704636637689,-500.0,0.00022798,2]
[310651438,1704636637699,-500.0,0.00022798,2]
[310651439,1704636637708,-500.0,0.00022798,2]
[310651440,1704636637718,-506.59207624,0.00022798,2]
[310651441,1704636637728,-500.0,0.00022798,2]
[310651442,1704636637738,-500.0,0.00022798,2]
[310651443,1704636637747,-500.0,0.00022798,2]
[310651444,1704636637757,-500.0,0.00022798,2]
[310651445,1704636637768,-500.0,0.00022798,2]
[310651446,1704636637779,-500.0,0.00022798,2]
[310651447,1704636637788,-500.0,0.00022798,2]
[310651448,1704636637798,-500.0,0.00022798,2]
[310651449,1704636637809,-500.0,0.00022798,2]
[310651450,1704636637819,-500.0,0.00022798,2]
[310651451,1704636637829,-500.0,0.00022798,2]
[310651452,1704636637838,-500.0,0.00022798,2]
[310651453,1704636637847,-500.0,0.00022798,2]
[310651454,1704636637857,-500.0,0.00022798,2]
[310651455,1704636637867,-500.0,0.00022798,2]
[310651456,1704636637876,-500.0,0.00022798,2]
[310651457,1704636637885,-500.0,0.00022798,2]
[310651458,1704636637895,-500.0,0.00022798,2]
[310651459,1704636637904,-500.0,0.00022798,2]
[310651460,1704636637913,-500.0,0.00022798,2]
[310651461,1704636637922,-500.0,0.00022798,2]
[310651462,1704636637932,-500.0,0.00022798,2]
[310651463,1704636637941,-514.95924136,0.00022798,2]
[310651464,1704636637951,-500.0,0.00022798,2]
[310651465,1704636637960,-500.0,0.00022798,2]
[310651466,1704636637970,-500.0,0.00022798,2]
[310651467,1704636637979,-521.0656345,0.00022798,2]